fUST/lending_fUST_20250220
["ID","MTS","AMOUNT","RATE_DAILY","PERIOD"]
[353757810,1740013845900,-500.0,0.00013863,2]
[353757811,1740013845909,-500.0,0.00013863,2]
[353757812,1740013845919,-504.63,0.00013863,2]
[353757813,1740013845928,-609.45,0.00013863,2]
[353757814,1740013845937,-500.0,0.00013863,2]
[353757815,1740013845946,-500.0,0.00013863,2]
[353757816,1740013845956,-500.0,0.00013863,2]
[353757817,1740013845965,-626.47486817,0.00013863,2]
[353757819,1740013845975,-1837.95,0.00013863,2]
[353757820,1740013845984,-500.0,0.00013863,2]
[353757821,1740013845997,-500.0,0.00013863,2]
[353757822,1740013846008,-500.0,0.00013863,2]
[353757823,1740013846017,-508.34,0.00013863,2]
[353757825,1740013846028,-500.0,0.00013863,2]
[353757826,1740013846041,-1607.47,0.00013863,2]
[353757827,1740013846051,-500.0,0.00013863,2]
[353757828,1740013846060,-500.0,0.00013863,2]
[353757829,1740013846074,-580.19,0.00013863,2]
[353757830,1740013846091,-1981.68,0.00013863,2]
[353757831,1740013846106,-500.0,0.00013863,2]
[353757832,1740013846116,-500.0,0.00013863,2]
[353757833,1740013846126,-500.0,0.00013863,2]
[353757834,1740013846135,-5345.53,0.00013863,2]
[353757835,1740013846144,-500.0,0.00013863,2]
[353757836,1740013846154,-938.87,0.00013863,2]
[353757837,1740013846163,-290.56435506,0.00013863,2]
[353757838,1740013846173,-1049.77,0.00013863,2]
[353757839,1740013846182,-500.0,0.00013863,2]
[353757840,1740013846191,-500.0,0.00013863,2]
[353757841,1740013846201,-500.0,0.000139,7]
[353757843,1740013846210,-500.0,0.000139,7]
[353757844,1740013846220,-500.0,0.000139,7]
[353757845,1740013846229,-500.0,0.000139,7]
[353757846,1740013846239,-500.0,0.000139,7]
[353757847,1740013846247,-500.0,0.000139,7]
[353757848,1740013846257,-500.0,0.000139,7]
[353757850,1740013846267,-500.0,0.000139,7]
[353757851,1740013846276,-566.69,0.000139,7]
[353757852,1740013846286,-500.0,0.000139,7]
[353757853,1740013846295,-151.0,0.000139,2]
[353757854,1740013846305,-151.0,0.000139,2]
[353757855,1740013846314,-151.0,0.000139,2]
[353757856,1740013846324,-151.0,0.000139,2]
[353757857,1740013846333,-151.0,0.000139,2]
[353757858,1740013846343,-151.0,0.000139,2]
[353757859,1740013846353,-179.69451932,0.00013904,2]
[353757860,1740013846362,-1120.28347369,0.00013927,2]
[353757861,1740013846372,-3000.0,0.00013927,2]
[353757862,1740013846387,-716.92604047,0.00013927,2]
[353757864,1740013846397,-716.92604047,0.00013927,2]
[353757865,1740013846407,-716.92604047,0.00013927,2]
[353757866,1740013846416,-716.92604047,0.00013927,2]
[353757867,1740013846425,-716.92604047,0.00013927,2]
[353757868,1740013846435,-716.92604047,0.00013927,2]
[353757869,1740013846444,-716.92604047,0.00013927,2]
[353757870,1740013846454,-716.92604047,0.00013927,2]
[353757871,1740013846464,-716.92604047,0.00013927,2]
[353757872,1740013846474,-716.92604047,0.00013927,2]
[353757873,1740013846483,-716.92604047,0.00013927,2]
[353757874,1740013846493,-716.92604047,0.00013927,2]
[353757875,1740013846502,-716.92604047,0.00013927,2]
[353757876,1740013846513,-716.92604047,0.00013927,2]
[353757877,1740013846523,-716.92604047,0.00013927,2]
[353757878,1740013846532,-716.92604047,0.00013927,2]
[353757879,1740013846542,-716.92604047,0.00013927,2]
[353757880,1740013846551,-716.92604047,0.00013927,2]
[353757881,1740013846560,-716.92604047,0.00013927,2]
[353757882,1740013846570,-716.92,0.00013927,2]
[353757883,1740013846579,-158.79014089,0.00013927,2]
[353757884,1740013846589,-158.79014089,0.00013927,2]
[353757885,1740013846599,-158.79014089,0.00013927,2]
[353757886,1740013846608,-158.79014089,0.00013927,2]
[353757887,1740013846617,-158.79014089,0.00013927,2]
[353757888,1740013846627,-158.79014089,0.00013927,2]
[353757889,1740013846636,-158.79014089,0.00013927,2]
[353757890,1740013846646,-158.79014089,0.00013927,2]
[353757891,1740013846656,-158.79014089,0.00013927,2]
[353757892,1740013846665,-158.79014089,0.00013927,2]
[353757893,1740013846678,-158.79,0.00013927,2]
[353757894,1740013846688,-500.0,0.00013945,2]
[353757895,1740013846698,-500.0,0.00013945,2]
[353757896,1740013846707,-500.0,0.00013945,2]
[353757897,1740013846717,-500.0,0.00013945,2]
[353757898,1740013846727,-500.0,0.00013945,2]
[353757899,1740013846736,-500.0,0.00013945,2]
[353757900,1740013846745,-500.0,0.00013945,2]
[353757901,1740013846755,-500.0,0.00013945,2]
[353757902,1740013846765,-500.0,0.00013945,2]
[353757903,1740013846776,-636.42,0.00013945,2]
[353757904,1740013846785,-500.0,0.00013945,2]
[353757905,1740013846795,-500.0,0.00013945,2]
[353757906,1740013846804,-500.0,0.00013945,2]
[353757907,1740013846814,-500.0,0.00013945,2]
[353757908,1740013846823,-500.0,0.00013945,2]
[353757909,1740013846833,-500.0,0.00013945,2]
[353757910,1740013846843,-510.16121033,0.00013945,2]
[353757911,1740013846852,-500.0,0.00013945,2]
[353757912,1740013846861,-500.0,0.00013945,2]
[353757913,1740013846870,-500.0,0.00013945,2]
[353757914,1740013846880,-500.0,0.00013945,2]
[353757915,1740013846890,-500.0,0.00013945,2]
[353757916,1740013846899,-500.0,0.00013945,2]
[353757917,1740013846909,-17094.74,0.00013945,2]
[353757918,1740013846918,-500.0,0.00013945,2]
[353757919,1740013846928,-582.87,0.00013945,2]
[353757920,1740013846938,-500.0,0.00013945,2]
[353757921,1740013846947,-565.46,0.00013945,2]
[353757922,1740013846957,-500.0,0.00013945,2]
[353757923,1740013846967,-500.0,0.00013945,2]
[353757924,1740013846976,-500.0,0.00013945,2]
[353757925,1740013846986,-500.0,0.00013945,2]
[353757926,1740013846995,-620.06,0.00013945,2]
[353757927,1740013847004,-500.0,0.00013945,2]
[353757928,1740013847014,-500.0,0.00013945,2]
[353757929,1740013847054,-935.39,0.00013945,2]
[353757930,1740013847063,-786.27,0.00013945,2]
[353757931,1740013847072,-500.0,0.00013945,2]
[353757932,1740013847082,-1339.64,0.00013945,2]
[353757933,1740013847091,-2415.0,0.00013945,2]
[353757934,1740013847100,-500.0,0.00013945,2]
[353757935,1740013847109,-500.0,0.00013945,2]
[353757936,1740013847119,-500.0,0.00013945,2]
[353757937,1740013847128,-586.08098828,0.00013945,2]
[353757938,1740013847137,-500.0,0.00013945,2]
[353757939,1740013847147,-500.0,0.00013945,2]
[353757940,1740013847156,-500.0,0.00013945,2]
[353757941,1740013847166,-1594.37,0.00013945,2]
[353757942,1740013847175,-500.0,0.00013945,2]
[353757943,1740013847185,-500.0,0.00013945,2]
[353757944,1740013847194,-838.74,0.00013945,2]
[353757945,1740013847204,-500.0,0.00013945,2]
[353757946,1740013847213,-500.0,0.00013945,2]
[353757947,1740013847227,-500.0,0.00013945,2]
[353757948,1740013847236,-500.0,0.00013945,2]
[353757949,1740013847245,-518.91001123,0.00013945,2]
[353757950,1740013847255,-500.0,0.00013945,2]
[353757951,1740013847265,-1322.35,0.00013945,2]
[353757952,1740013847274,-500.0,0.00013945,2]
[353757953,1740013847284,-500.0,0.00013945,2]
[353757954,1740013847293,-500.0,0.00013945,2]
[353757955,1740013847302,-500.0,0.00013945,2]
[353757956,1740013847311,-500.0,0.00013945,2]
[353757957,1740013847320,-500.0,0.00013945,2]
[353757958,1740013847329,-500.0,0.00013945,2]
[353757959,1740013847339,-500.0,0.00013945,2]
[353757960,1740013847348,-739.3,0.00013945,2]
[353757961,1740013847358,-500.0,0.00013945,2]
[353757962,1740013847367,-729.4,0.00013945,2]
[353757963,1740013847376,-500.0,0.00013945,2]
[353757964,1740013847385,-500.0,0.00013945,2]
[353757965,1740013847395,-500.0,0.00013945,2]
[353757966,1740013847404,-500.0,0.00013945,2]
[353757967,1740013847413,-720.36,0.00013945,2]
[353757968,1740013847423,-6999.65,0.00013945,2]
[353757969,1740013847432,-500.0,0.00013945,2]
[353757970,1740013847441,-500.0,0.00013945,2]
[353757971,1740013847450,-500.0,0.00013945,2]
[353757972,1740013847460,-500.0,0.00013945,2]
[353757973,1740013847469,-504.63,0.00013945,2]
[353757974,1740013847478,-609.45,0.00013945,2]
[353757975,1740013847487,-500.0,0.00013945,2]
[353757976,1740013847497,-500.0,0.00013945,2]
[353757977,1740013847507,-1837.95,0.00013945,2]
[353757978,1740013847516,-500.0,0.00013945,2]
[353757979,1740013847526,-500.0,0.00013945,2]
[353757980,1740013847535,-372.74,0.00013945,2]
[353757981,1740013847544,-500.0,0.00013945,2]
[353757982,1740013847554,-1607.47,0.00013945,2]
[353757983,1740013847563,-500.0,0.00013945,2]
[353757984,1740013847572,-580.19,0.00013945,2]
[353757985,1740013847582,-1981.68,0.00013945,2]
[353757986,1740013847591,-500.0,0.00013945,2]
[353757987,1740013847600,-503.96689184,0.00013945,2]
[353757988,1740013847609,-500.0,0.00013945,2]
[353757989,1740013847619,-5345.53,0.00013945,2]
[353757990,1740013847629,-938.87,0.00013945,2]
[353757991,1740013847638,-1049.77,0.00013945,2]
[353757992,1740013847648,-500.0,0.00013945,2]
[353757993,1740013847657,-500.0,0.00013945,2]
[353757994,1740013847667,-500.0,0.00013973,2]
[353757995,1740013847679,-517.07307425,0.00013973,2]
[353757996,1740013847688,-500.0,0.00013973,2]
[353757997,1740013847698,-500.0,0.00013973,2]
[353757998,1740013847707,-478.40162192,0.00013973,2]
[353757999,1740013847717,-274.89863459,0.00013973,2]
[353758000,1740013847727,-500.92393811,0.00013973,2]
[353758001,1740013847736,-313.13655774,0.00013973,2]
[353758002,1740013847746,-500.0,0.00013973,2]
[353758003,1740013847758,-269.25399374,0.00013973,2]
[353758004,1740013847768,-500.0,0.00013973,2]
[353758005,1740013847778,-404.4072025,0.00013973,2]
[353758006,1740013847787,-107463.72872931,0.00013987,2]
[353758007,1740013847796,-107463.72872931,0.00013989,2]
[353758008,1740013847805,-107463.72872931,0.00013991,2]
[353758009,1740013847814,-151.0,0.00014,2]
[353758010,1740013847823,-355.163177,0.00014,2]
[353758011,1740013847833,-151.0,0.00014,2]
[353758012,1740013847843,-151.0,0.00014,2]
[353758013,1740013847853,-151.0,0.00014,2]
[353758014,1740013847862,-24539.12833143,0.00014,2]
[353758015,1740013847872,-663.25779959,0.0001402,2]
[353758016,1740013847881,-500.0,0.00014027,2]
[353758017,1740013847890,-500.0,0.00014027,2]
[353758018,1740013847900,-500.0,0.00014027,2]
[353758019,1740013847909,-500.0,0.00014027,2]
[353758020,1740013847919,-500.0,0.00014027,2]
[353758021,1740013847928,-500.0,0.00014027,2]
[353758022,1740013847938,-500.0,0.00014027,2]
[353758023,1740013847947,-500.0,0.00014027,2]
[353758024,1740013847957,-500.0,0.00014027,2]
[353758025,1740013847966,-636.42,0.00014027,2]
[353758026,1740013847976,-500.0,0.00014027,2]
[353758027,1740013847986,-500.0,0.00014027,2]
[353758028,1740013847995,-500.0,0.00014027,2]
[353758029,1740013848006,-375.94,0.00014027,2]
[353758030,1740013848016,-500.0,0.00014027,2]
[353758031,1740013848026,-500.0,0.00014027,2]
[353758032,1740013848036,-500.0,0.00014027,2]
[353758033,1740013848046,-500.0,0.00014027,2]
[353758034,1740013848056,-500.0,0.00014027,2]
[353758035,1740013848066,-500.0,0.00014027,2]
[353758036,1740013848075,-17094.74,0.00014027,2]
[353758037,1740013848085,-500.0,0.00014027,2]
[353758038,1740013848095,-582.87,0.00014027,2]
[353758039,1740013848104,-500.0,0.00014027,2]
[353758040,1740013848114,-565.46,0.00014027,2]
[353758041,1740013848124,-500.0,0.00014027,2]
[353758042,1740013848134,-500.0,0.00014027,2]
[353758043,1740013848144,-500.0,0.00014027,2]
[353758044,1740013848154,-500.0,0.00014027,2]
[353758045,1740013848164,-620.06,0.00014027,2]
[353758046,1740013848174,-500.0,0.00014027,2]
[353758047,1740013848184,-935.39,0.00014027,2]
[353758048,1740013848194,-786.27,0.00014027,2]
[353758049,1740013848204,-500.0,0.00014027,2]
[353758050,1740013848214,-1339.64,0.00014027,2]
[353758051,1740013848224,-2415.0,0.00014027,2]
[353758052,1740013848234,-500.0,0.00014027,2]
[353758053,1740013848244,-500.0,0.00014027,2]
[353758054,1740013848255,-635.9639783,0.00014027,2]
[353758055,1740013848266,-500.0,0.00014027,2]
[353758056,1740013848276,-500.0,0.00014027,2]
[353758057,1740013848287,-1594.37,0.00014027,2]
[353758058,1740013848297,-500.0,0.00014027,2]
[353758059,1740013848307,-838.74,0.00014027,2]
[353758060,1740013848318,-500.0,0.00014027,2]
[353758061,1740013848328,-500.0,0.00014027,2]
[353758062,1740013848338,-500.0,0.00014027,2]
[353758063,1740013848348,-500.0,0.00014027,2]
[353758064,1740013848359,-1322.35,0.00014027,2]
[353758065,1740013848369,-500.0,0.00014027,2]
[353758066,1740013848379,-384.47588428,0.00014027,2]
[353758067,1740013848389,-205.50899377,0.00014027,2]
[353758068,1740013848399,-500.0,0.00014027,2]
[353758069,1740013848409,-500.0,0.00014027,2]
[353758070,1740013848420,-500.0,0.00014027,2]
[353758071,1740013848430,-500.0,0.00014027,2]
[353758072,1740013848440,-500.0,0.00014027,2]
[353758073,1740013848450,-739.3,0.00014027,2]
[353758074,1740013848460,-500.0,0.00014027,2]
[353758075,1740013848470,-729.4,0.00014027,2]
[353758076,1740013848480,-500.0,0.00014027,2]
[353758077,1740013848490,-500.0,0.00014027,2]
[353758078,1740013848500,-500.0,0.00014027,2]
[353758079,1740013848510,-720.36,0.00014027,2]
[353758080,1740013848521,-6999.65,0.00014027,2]
[353758081,1740013848531,-500.0,0.00014027,2]
[353758082,1740013848542,-500.0,0.00014027,2]
[353758083,1740013848552,-504.63,0.00014027,2]
[353758084,1740013848562,-609.45,0.00014027,2]
[353758085,1740013848571,-500.0,0.00014027,2]
[353758086,1740013848584,-398.40687454,0.00014027,2]
[353758087,1740013848594,-1837.95,0.00014027,2]
[353758088,1740013848613,-500.0,0.00014027,2]
[353758089,1740013848628,-500.0,0.00014027,2]
[353758090,1740013848639,-500.0,0.00014027,2]
[353758091,1740013848649,-1607.47,0.00014027,2]
[353758092,1740013848661,-500.0,0.00014027,2]
[353758093,1740013848673,-580.19,0.00014027,2]
[353758094,1740013848686,-1981.68,0.00014027,2]
[353758095,1740013848696,-500.0,0.00014027,2]
[353758096,1740013848706,-500.0,0.00014027,2]
[353758097,1740013848718,-5345.53,0.00014027,2]
[353758098,1740013848729,-938.87,0.00014027,2]
[353758099,1740013848740,-1049.77,0.00014027,2]
[353758100,1740013848750,-500.0,0.00014027,2]
[353758101,1740013848762,-500.0,0.00014027,2]
[353758102,1740013848772,-153.5365275,0.00014082,2]
[353758103,1740013848783,-361.8870903,0.00014082,2]
[353758104,1740013848792,-151.0,0.000141,2]
[353758105,1740013848802,-151.0,0.000141,2]
[353758106,1740013848812,-500.0,0.00014109,2]
[353758107,1740013848822,-500.0,0.00014109,2]
[353758108,1740013848832,-500.0,0.00014109,2]
[353758109,1740013848843,-500.0,0.00014109,2]
[353758110,1740013848853,-500.0,0.00014109,2]
[353758111,1740013848864,-500.0,0.00014109,2]
[353758112,1740013848874,-500.0,0.00014109,2]
[353758113,1740013848884,-417.6237776,0.00014109,2]
[353758114,1740013848895,-636.42,0.00014109,2]
[353758115,1740013848905,-500.0,0.00014109,2]
[353758116,1740013848915,-500.0,0.00014109,2]
[353758117,1740013848925,-500.0,0.00014109,2]
[353758118,1740013848935,-500.0,0.00014109,2]
[353758119,1740013848946,-500.0,0.00014109,2]
[353758120,1740013848956,-547.55845176,0.00014109,2]
[353758121,1740013848966,-500.0,0.00014109,2]
[353758122,1740013848976,-500.0,0.00014109,2]
[353758123,1740013848986,-500.0,0.00014109,2]
[353758124,1740013848996,-17094.74,0.00014109,2]
[353758125,1740013849006,-582.87,0.00014109,2]
[353758126,1740013849017,-500.0,0.00014109,2]
[353758127,1740013849027,-565.46,0.00014109,2]
[353758128,1740013849037,-500.0,0.00014109,2]
[353758129,1740013849047,-500.0,0.00014109,2]
[353758130,1740013849058,-500.0,0.00014109,2]
[353758131,1740013849068,-500.0,0.00014109,2]
[353758132,1740013849078,-620.06,0.00014109,2]
[353758133,1740013849088,-500.0,0.00014109,2]
[353758134,1740013849098,-935.39,0.00014109,2]
[353758135,1740013849108,-786.27,0.00014109,2]
[353758136,1740013849118,-1339.64,0.00014109,2]
[353758137,1740013849128,-2415.0,0.00014109,2]
[353758138,1740013849138,-500.0,0.00014109,2]
[353758139,1740013849148,-500.0,0.00014109,2]
[353758140,1740013849158,-500.0,0.00014109,2]
[353758141,1740013849168,-1594.37,0.00014109,2]
[353758142,1740013849179,-500.0,0.00014109,2]
[353758143,1740013849189,-838.74,0.00014109,2]
[353758144,1740013849199,-500.0,0.00014109,2]
[353758145,1740013849209,-500.0,0.00014109,2]
[353758146,1740013849219,-500.0,0.00014109,2]
[353758147,1740013849230,-500.0,0.00014109,2]
[353758148,1740013849240,-1322.35,0.00014109,2]
[353758149,1740013849250,-500.0,0.00014109,2]
[353758150,1740013849260,-500.0,0.00014109,2]
[353758151,1740013849270,-500.0,0.00014109,2]
[353758152,1740013849281,-739.3,0.00014109,2]
[353758153,1740013849291,-500.0,0.00014109,2]
[353758154,1740013849302,-500.0,0.00014109,2]
[353758155,1740013849312,-729.4,0.00014109,2]
[353758156,1740013849323,-500.0,0.00014109,2]
[353758157,1740013849333,-500.0,0.00014109,2]
[353758158,1740013849344,-720.36,0.00014109,2]
[353758159,1740013849355,-6999.65,0.00014109,2]
[353758160,1740013849365,-500.0,0.00014109,2]
[353758161,1740013849376,-500.0,0.00014109,2]
[353758162,1740013849387,-504.63,0.00014109,2]
[353758163,1740013849397,-609.45,0.00014109,2]
[353758164,1740013849407,-500.0,0.00014109,2]
[353758165,1740013849417,-1837.95,0.00014109,2]
[353758166,1740013849427,-500.0,0.00014109,2]
[353758167,1740013849437,-500.0,0.00014109,2]
[353758168,1740013849448,-500.0,0.00014109,2]
[353758169,1740013849458,-1607.47,0.00014109,2]
[353758170,1740013849472,-500.0,0.00014109,2]
[353758171,1740013849482,-580.19,0.00014109,2]
[353758172,1740013849493,-1981.68,0.00014109,2]
[353758173,1740013849503,-500.0,0.00014109,2]
[353758174,1740013849514,-156.51,0.00014109,2]
[353758175,1740013849524,-5345.53,0.00014109,2]
[353758176,1740013849534,-938.87,0.00014109,2]
[353758177,1740013849544,-1049.77,0.00014109,2]
[353758178,1740013849554,-500.0,0.00014109,2]
[353758179,1740013849564,-500.0,0.00014109,2]
[353758180,1740013849574,-7438.69753278,0.00014134,2]
[353758181,1740013849584,-600.0,0.00014164,2]
[353758182,1740013849594,-5681.82557522,0.0001418,2]
[353758183,1740013849604,-500.0,0.00014191,2]
[353758184,1740013849615,-500.0,0.00014191,2]
[353758185,1740013849625,-500.0,0.00014191,2]
[353758186,1740013849635,-500.0,0.00014191,2]
[353758187,1740013849645,-500.0,0.00014191,2]
[353758188,1740013849655,-396.73717615,0.00014191,2]
[353758189,1740013849665,-500.0,0.00014191,2]
[353758190,1740013849677,-636.42,0.00014191,2]
[353758191,1740013849688,-500.0,0.00014191,2]
[353758192,1740013849698,-500.0,0.00014191,2]
[353758193,1740013849709,-500.0,0.00014191,2]
[353758194,1740013849719,-500.0,0.00014191,2]
[353758195,1740013849729,-500.0,0.00014191,2]
[353758196,1740013849739,-500.0,0.00014191,2]
[353758197,1740013849750,-293.20710241,0.00014191,2]
[353758198,1740013849761,-17094.74,0.00014191,2]
[353758199,1740013849772,-582.87,0.00014191,2]
[353758200,1740013849782,-500.0,0.00014191,2]
[353758201,1740013849792,-565.46,0.00014191,2]
[353758202,1740013849803,-500.0,0.00014191,2]
[353758203,1740013849813,-500.0,0.00014191,2]
[353758204,1740013849824,-500.0,0.00014191,2]
[353758205,1740013849835,-500.0,0.00014191,2]
[353758206,1740013849845,-620.06,0.00014191,2]
[353758207,1740013849856,-500.0,0.00014191,2]
[353758208,1740013849866,-935.39,0.00014191,2]
[353758209,1740013849876,-786.27,0.00014191,2]
[353758210,1740013849886,-1339.64,0.00014191,2]
[353758211,1740013849896,-2415.0,0.00014191,2]
[353758212,1740013849906,-500.0,0.00014191,2]
[353758213,1740013849917,-500.0,0.00014191,2]
[353758214,1740013849928,-500.0,0.00014191,2]
[353758215,1740013849938,-1594.37,0.00014191,2]
[353758216,1740013849949,-500.0,0.00014191,2]
[353758217,1740013849960,-838.74,0.00014191,2]
[353758218,1740013849970,-500.0,0.00014191,2]
[353758219,1740013849980,-500.0,0.00014191,2]
[353758220,1740013849991,-500.0,0.00014191,2]
[353758221,1740013850001,-500.0,0.00014191,2]
[353758222,1740013850011,-1322.35,0.00014191,2]
[353758223,1740013850021,-500.0,0.00014191,2]
[353758224,1740013850031,-479.13,0.00014191,2]
[353758225,1740013850041,-500.0,0.00014191,2]
[353758226,1740013850051,-739.3,0.00014191,2]
[353758227,1740013850062,-166.81575571,0.00014191,2]
[353758228,1740013850072,-500.0,0.00014191,2]
[353758229,1740013850082,-729.4,0.00014191,2]
[353758230,1740013850092,-151.0,0.00014191,2]
[353758231,1740013850103,-500.0,0.00014191,2]
[353758232,1740013850113,-720.36,0.00014191,2]
[353758233,1740013850124,-6999.65,0.00014191,2]
[353758234,1740013850134,-500.0,0.00014191,2]
[353758235,1740013850145,-500.0,0.00014191,2]
[353758236,1740013850155,-504.63,0.00014191,2]
[353758237,1740013850166,-609.45,0.00014191,2]
[353758238,1740013850176,-500.0,0.00014191,2]
[353758239,1740013850187,-1837.95,0.00014191,2]
[353758240,1740013850199,-500.0,0.00014191,2]
[353758241,1740013850210,-151.0,0.00014191,2]
[353758242,1740013850220,-500.0,0.00014191,2]
[353758243,1740013850231,-1607.47,0.00014191,2]
[353758244,1740013850242,-151.0,0.00014191,2]
[353758245,1740013850254,-500.0,0.00014191,2]
[353758246,1740013850400,-1022.629881,0.00014191,2]
[353758247,1740013850410,-1022.629881,0.00014191,2]
[353758248,1740013850420,-580.19,0.00014191,2]
[353758249,1740013850430,-1981.68,0.00014191,2]
[353758250,1740013850440,-500.0,0.00014191,2]
[353758251,1740013850450,-196.366296,0.00014191,2]
[353758252,1740013850459,-196.366296,0.00014191,2]
[353758253,1740013850469,-5345.53,0.00014191,2]
[353758254,1740013850479,-938.87,0.00014191,2]
[353758255,1740013850489,-1049.77,0.00014191,2]
[353758256,1740013850498,-500.0,0.00014191,2]
[353758257,1740013850507,-500.0,0.00014191,2]
[353758258,1740013850518,-151.0,0.000142,2]
[353758259,1740013850529,-151.0,0.000142,2]
[353758260,1740013850539,-151.0,0.000142,2]
[353758261,1740013850549,-500.0,0.00014247,2]
[353758262,1740013850559,-400.0,0.00014273,2]
[353758263,1740013850569,-400.0,0.00014273,2]
[353758264,1740013850578,-400.0,0.00014273,2]
[353758265,1740013850588,-400.0,0.00014273,2]
[353758266,1740013850597,-400.0,0.00014273,2]
[353758267,1740013850607,-400.0,0.00014273,2]
[353758268,1740013850617,-400.0,0.00014273,2]
[353758269,1740013850626,-400.0,0.00014273,2]
[353758270,1740013850635,-400.0,0.00014273,2]
[353758271,1740013850644,-400.0,0.00014273,2]
[353758272,1740013850655,-400.0,0.00014273,2]
[353758273,1740013850664,-400.0,0.00014273,2]
[353758274,1740013850674,-400.0,0.00014273,2]
[353758275,1740013850685,-400.0,0.00014273,2]
[353758276,1740013850694,-400.0,0.00014273,2]
[353758277,1740013850703,-400.0,0.00014273,2]
[353758278,1740013850713,-400.0,0.00014273,2]
[353758279,1740013850723,-400.0,0.00014273,2]
[353758280,1740013850733,-400.0,0.00014273,2]
[353758281,1740013850742,-400.0,0.00014273,2]
[353758282,1740013850762,-400.0,0.00014273,2]
[353758283,1740013850774,-400.0,0.00014273,2]
[353758284,1740013850784,-400.0,0.00014273,2]
[353758285,1740013850794,-400.0,0.00014273,2]
[353758286,1740013850804,-400.0,0.00014273,2]
[353758287,1740013850815,-400.0,0.00014273,2]
[353758288,1740013850824,-400.0,0.00014273,2]
[353758289,1740013850834,-400.0,0.00014273,2]
[353758290,1740013850844,-400.0,0.00014273,2]
[353758291,1740013850854,-400.0,0.00014273,2]
[353758292,1740013850865,-400.0,0.00014273,2]
[353758293,1740013850875,-400.0,0.00014273,2]
[353758294,1740013850885,-400.0,0.00014273,2]
[353758295,1740013850896,-400.0,0.00014273,2]
[353758296,1740013850906,-400.0,0.00014273,2]
[353758297,1740013850916,-400.0,0.00014273,2]
[353758298,1740013850926,-400.0,0.00014273,2]
[353758299,1740013850936,-400.0,0.00014273,2]
[353758300,1740013850946,-400.0,0.00014273,2]
[353758301,1740013850956,-400.0,0.00014273,2]
[353758302,1740013850966,-400.0,0.00014273,2]
[353758303,1740013850976,-400.0,0.00014273,2]
[353758304,1740013850986,-400.0,0.00014273,2]
[353758305,1740013850996,-400.0,0.00014273,2]
[353758306,1740013851006,-400.0,0.00014273,2]
[353758307,1740013851017,-400.0,0.00014273,2]
[353758308,1740013851027,-400.0,0.00014273,2]
[353758309,1740013851037,-400.0,0.00014273,2]
[353758310,1740013851047,-400.0,0.00014273,2]
[353758311,1740013851057,-400.0,0.00014273,2]
[353758312,1740013851067,-400.0,0.00014273,2]
[353758313,1740013851077,-400.0,0.00014273,2]
[353758314,1740013851087,-400.0,0.00014273,2]